fUSD/lending_fUSD_20250511
["ID","MTS","AMOUNT","RATE_DAILY","PERIOD"]
[360750417,1746969037788,-22283.4957425,0.0001499,2]
[360750418,1746969037797,-22161.5009628,0.0001499,2]
[360750419,1746969037807,-22039.5061831,0.0001499,2]
[360750420,1746969037816,-189781.9909776,0.0001499,2]
[360750421,1746969037833,-1073.05159005,0.0001499,2]
[360750422,1746969038999,-702.65662886,0.0001499,2]
[360750423,1746969039418,-439.62846435,0.0001499,2]
[360750424,1746969039623,-36948.86694194,0.0001499,2]
[360750425,1746969039637,-227692.7898004,0.0001499,2]
[360750426,1746969039650,-179700.10089842,0.0001499,2]
[360750428,1746969040565,-434.05150997,0.000149,2]
[360750429,1746969040624,-58.43843304,0.000149,2]
[360750430,1746969040633,-307.08277424,0.000149,2]
[360750431,1746969040643,-1838.77666932,0.0001499,2]
[360750432,1746969040655,-44900.50743016,0.0001499,2]
[360750433,1746969040665,-151.0,0.00014991,2]
[360750434,1746969040675,-300.0,0.00014999,2]
[360750435,1746969040684,-300.0,0.00014999,2]
[360750436,1746969040694,-300.0,0.00014999,2]
[360750437,1746969040703,-188990.29756984,0.00015,2]
[360750438,1746969041027,-112203.20736046,0.00015,2]
[360750439,1746969041042,-23927.31140757,0.00015,2]
[360750440,1746969041063,-783.68195796,0.00015,2]
[360750441,1746969041074,-4177.66357141,0.00015,2]
[360750442,1746969041085,-368.17471196,0.00015,2]
[360750443,1746969041102,-1049.426935,0.00015,2]
[360750445,1746969042435,-343.18,0.00015,2]
[360750453,1746969042831,-125.75980314,0.000149,2]
[360750454,1746969042853,-120.48516837,0.000149,2]
[360750455,1746969042862,-245.66621939,0.000149,2]
[360750456,1746969042871,-1212.74519865,0.00015,2]
[360750458,1746969042961,-203159.49279283,0.00015,2]
[360750461,1746969045769,-21639.3551474,0.00015,2]
[360750462,1746969045781,-22096.52072,0.00015,2]
[360750463,1746969045826,-1919.9,0.00015,2]
[360750464,1746969045968,-25.57289705,0.00015,2]
[360750465,1746969045979,-12000.0,0.00015,2]
[360750466,1746969045991,-830.86657981,0.00015,2]
[360750467,1746969050293,-223.49909439,0.00015,2]
[360750468,1746969065209,-250.0,0.00014973,2]
[360750469,1746969080912,-250.0,0.00014973,2]
[360750470,1746969080936,-55.54297489,0.00015,2]
[360750471,1746969085715,263.22509589,0.00028,120]
[360750472,1746969095246,-200.46593428,0.00015,2]
[360750473,1746969110958,-250.0,0.00015,2]
[360750477,1746969125243,-250.0,0.00014999,2]
[360750478,1746969140309,-216.25706895,0.00013842,2]
[360750479,1746969155263,-186.03411536,0.00013842,2]
[360750480,1746969170306,-305.10881569,0.00014617,2]
[360750481,1746969185746,-339.16264044,0.00014617,2]
[360750482,1746969200960,-296.56264044,0.00014617,2]
[360750483,1746969215241,-473.57115811,0.00014617,2]
[360750484,1746969230304,-55.95474532,0.00014617,2]
[360750485,1746969230326,-134.16409657,0.000149,2]
[360750486,1746969245256,-48.69630421,0.000149,2]
[360750487,1746969245279,-161.30369579,0.00014973,2]
[360750488,1746969260214,-168.32156732,0.000149,2]
[360750489,1746969265847,378.32156732,0.00028,120]
[360750490,1746969275255,-327.25861628,0.000149,2]
[360750491,1746969290708,-227.39013481,0.000149,2]
[360750492,1746969305289,-122.45214312,0.000149,2]
[360750493,1746969305312,-205.90373996,0.000149,2]
[360750494,1746969320219,-152.01808448,0.000149,2]
[360750495,1746969326352,460.0,0.00028,120]
[360750496,1746969335385,-131.55676499,0.000149,2]
[360750497,1746969335407,-155.27177185,0.000149,2]
[360750498,1746969350227,-176.18968627,0.000149,2]
[360750499,1746969350249,-82.28489948,0.000149,2]
[360750500,1746969365262,-90.17787493,0.000149,2]
[360750501,1746969365285,-161.10255393,0.000149,2]
[360750502,1746969376691,1164.93886302,0.00014999,5]
[360750503,1746969380828,-170.01396221,0.000149,2]
[360750504,1746969387801,1541.62023231,0.00028,120]
[360750505,1746969395285,-150.12,0.00013699,2]
[360750506,1746969395308,-82.97255732,0.0001489,2]
[360750507,1746969411340,-306.1283154,0.00014882,2]
[360750508,1746969425275,-269.29409299,0.00014874,2]
[360750509,1746969426148,-269.29409299,0.00014874,2]
[360750510,1746969440223,-289.25255765,0.00014706,2]
[360750511,1746969445167,336.0,0.00028,120]
[360750512,1746969455197,-208.36079204,0.00014706,2]
[360750513,1746969470519,-250.0,0.00014706,2]
[360750514,1746969485424,-234.96823994,0.00014706,2]
[360750515,1746969500228,-152.0,0.00014515,2]
[360750516,1746969505322,303.0,0.00028,120]
[360750517,1746969514374,-48.0,0.00014515,2]
[360750518,1746969514396,-104.70933397,0.00014706,2]
[360750519,1746969517634,-152.70933397,0.00014706,2]
[360750520,1746969530228,-164.249341,0.00014706,2]
[360750521,1746969545305,-295.02944276,0.00014706,2]
[360750522,1746969560837,-233.29908279,0.00014706,2]
[360750523,1746969565779,1669.0,0.00028,120]
[360750524,1746969566634,399.79400704,0.00028,120]
[360750525,1746969575964,-163.04799938,0.00014192,2]
[360750526,1746969590806,-216.49811875,0.00014192,2]
[360750527,1746969605307,-465.70464052,0.0001413,2]
[360750528,1746969620271,-152.87535948,0.0001413,2]
[360750529,1746969620295,-161.81979359,0.00014134,2]
[360750530,1746969625676,852.0,0.00028,120]
[360750531,1746969635311,-233.15049164,0.00014134,2]
[360750532,1746969650873,-157.18,0.00013613,2]
[360750533,1746969650896,-213.61637939,0.00014134,2]
[360750534,1746969665319,-216.66282283,0.00013587,2]
[360750535,1746969680248,-83.33717717,0.00013587,2]
[360750536,1746969680270,-149.96190562,0.00013588,2]
[360750537,1746969685750,384.0,0.00028,120]
[360750538,1746969695232,-295.00793421,0.00013588,2]
[360750539,1746969710257,-250.0,0.00013588,2]
[360750540,1746969725224,-250.0,0.00013567,2]
[360750541,1746969740858,-178.40805365,0.00013567,2]
[360750542,1746969742497,170.3,0.00010853,2]
[360750543,1746969745131,1227.0,0.00028,120]
[360750544,1746969745918,799.24975902,0.00028,120]
[360750545,1746969756960,-151.53,0.00013566,2]
[360750546,1746969758570,-151.53,0.00013566,2]
[360750547,1746969773158,-230.26909439,0.00013557,2]
[360750548,1746969780701,1000.0,0.00028,120]
[360750549,1746969785386,-223.49909439,0.00013548,2]
[360750550,1746969788939,-3000.0,0.0002,14]
[360750551,1746969792703,-3000.0,0.0002,14]
[360750552,1746969795932,-3000.0,0.0002,14]
[360750553,1746969797470,-3000.0,0.0002,14]
[360750554,1746969800280,-286.41181122,0.00013548,2]
[360750555,1746969822127,-1000.0,0.0002,14]
[360750556,1746969824088,-1000.0,0.0002,14]
[360750557,1746969825437,-1000.0,0.0002,14]
[360750558,1746969830518,-500.0,0.0002,14]
[360750559,1746969831756,-500.0,0.0002,14]
[360750560,1746969835217,-600.0,0.0002,14]
[360750561,1746969857857,155.00003242,0.00028,120]
[360750562,1746969907808,233.992386,7.945e-05,2]
[360750566,1746969920441,188.02454092,9e-05,2]
[360750567,1746969925258,41331.85721598,0.000185,5]
[360750568,1746969925315,1962.0,0.00028,120]
[360750569,1746969926143,192.14918282,0.00028,120]
[360750570,1746969926427,233.04993437,0.000108,2]
[360750571,1746969928562,432.9585783,0.00011,2]
[360750572,1746969937006,834.04804638,9e-05,2]
[360750573,1746969954867,15012.0,0.00015,10]
[360750574,1746969955748,839.82255867,6.94e-05,2]
[360750577,1746969967862,67.80395536,8e-05,2]
[360750578,1746969967889,1924.46031115,8e-05,2]
[360750579,1746969985115,536.0,0.00028,120]
[360750580,1746969992393,730.51,0.000185,5]
[360750582,1746970021600,5500.0,0.000141,5]
[360750583,1746970023703,10711.65163534,0.000142,5]
[360750584,1746970023730,388.34836466,0.000142,5]
[360750585,1746970025810,16700.0,0.000143,5]
[360750586,1746970027925,22300.0,0.000144,5]
[360750587,1746970028458,7187.14439,7.945e-05,2]
[360750588,1746970030018,27900.0,0.000145,5]
[360750589,1746970032013,167.86602967,7.7e-07,2]
[360750590,1746970032281,5500.0,0.000146,5]
[360750591,1746970034312,5500.0,0.000147,5]
[360750592,1746970036432,5500.0,0.000148,5]
[360750593,1746970037814,205.0,9.8e-05,2]
[360750594,1746970038722,5500.0,0.000149,5]
[360750595,1746970048088,-1449.56892911,0.00013299,2]
[360750596,1746970077146,2069.05455315,0.0001,2]
[360750597,1746970080280,1117.9913683,0.00015,10]
[360750610,1746970154194,-280.999004,0.00013298,2]
[360750611,1746970154216,-1000.0,0.00013299,2]
[360750612,1746970154247,-500.0,0.00013318,2]
[360750613,1746970154277,-500.0,0.00013318,2]
[360750614,1746970154306,-500.0,0.00013318,2]
[360750615,1746970154335,-500.0,0.00013318,2]
[360750616,1746970154364,-500.0,0.00013318,2]
[360750617,1746970154393,-500.0,0.00013318,2]
[360750618,1746970154424,-500.0,0.00013318,2]
[360750619,1746970154669,-56.385562,0.00013318,2]
[360750620,1746970155135,-443.614438,0.00013318,2]
[360750621,1746970155166,-500.0,0.00013318,2]
[360750622,1746970155195,-500.0,0.00013318,2]
[360750623,1746970155223,-500.0,0.00013318,2]
[360750624,1746970155252,-500.0,0.00013318,2]
[360750625,1746970155282,-500.0,0.00013318,2]
[360750626,1746970155310,-500.0,0.00013318,2]
[360750627,1746970155339,-500.0,0.00013318,2]
[360750628,1746970155367,-500.0,0.00013318,2]
[360750629,1746970155396,-236.31818589,0.00013318,2]
[360750630,1746970155418,-23900.0,0.00013319,2]
[360750631,1746970155441,-214.13096903,0.00013365,2]
[360750632,1746970155462,-203.09652151,0.00013365,2]
[360750633,1746970155484,-182.16799874,0.00013365,2]
[360750634,1746970155506,-150.0,0.00013365,2]
[360750635,1746970155526,-5989.58670683,0.00013366,2]
[360750636,1746970156112,-26824.0112828,0.00013366,2]
[360750637,1746970164100,-16896.70201037,0.00013366,2]
[360750638,1746970164122,-32960.47,0.00013366,2]
[360750639,1746970164144,-6503.4,0.0001342,2]
[360750640,1746970164166,-673.46,0.0001353,2]
[360750641,1746970164188,-1036.19909439,0.00013548,2]
[360750642,1746970164210,-653.36090561,0.00013557,2]
[360750643,1746970164230,-3954.57,0.00013566,2]
[360750644,1746970164253,-820.95194635,0.00013567,2]
[360750645,1746970164275,-300.0,0.00013585,2]
[360750646,1746970164296,-1200.0,0.00013586,2]
[360750647,1746970164317,-1678.63172328,0.00013588,2]
[360750648,1746970168764,-12106.03843689,0.00013588,2]
[360750649,1746970168785,-166.31,0.00013758,2]
[360750650,1746970168806,-22879.76922851,0.0001399,2]
[360750651,1746970168827,-151.0,0.00013992,2]
[360750652,1746970168846,-17303.29825191,0.00014,2]
[360750653,1746970173160,-69410.52073059,0.00014,2]
[360750654,1746970173183,-9.99333538,0.00014134,2]
[360750655,1746970173206,-618.58,0.00014138,2]
[360750656,1746970173228,-618.58,0.00014142,2]
[360750657,1746970173249,-618.58,0.00014145,2]
[360750658,1746970173273,-618.58,0.00014149,2]
[360750659,1746970173295,-618.58,0.00014153,2]
[360750660,1746970173317,-618.58,0.00014156,2]
[360750661,1746970173339,-618.58,0.0001416,2]
[360750662,1746970173361,-618.58,0.00014164,2]
[360750663,1746970173382,-618.58,0.00014168,2]
[360750664,1746970173403,-618.58,0.00014171,2]
[360750665,1746970173425,-618.58,0.00014175,2]
[360750666,1746970173448,-618.58,0.00014179,2]
[360750667,1746970173471,-618.58,0.00014183,2]
[360750668,1746970173493,-618.58,0.00014186,2]
[360750669,1746970173518,-618.58,0.0001419,2]
[360750670,1746970173544,-1069.83388187,0.00014192,2]
[360750671,1746970173566,-618.58,0.00014194,2]
[360750672,1746970173594,-618.58,0.00014197,2]
[360750673,1746970173615,-618.58,0.00014201,2]
[360750674,1746970173636,-500.0,0.00014229,2]
[360750675,1746970173659,-166.66017137,0.00014229,2]
[360750676,1746970173680,-163.86098508,0.00014247,2]
[360750677,1746970173701,-166.66017131,0.00014313,2]
[360750678,1746970173726,-163.86098508,0.00014329,2]
[360750679,1746970173976,-166.66017131,0.00014397,2]
[360750680,1746970174013,-163.86098508,0.00014438,2]
[360750681,1746970174034,-255.0,0.00014474,2]
[360750682,1746970174058,-166.66017131,0.00014481,2]
[360750683,1746970174080,-163.86098508,0.00014521,2]
[360750684,1746970174102,-166.66017131,0.00014565,2]
[360750685,1746970174127,-163.86098508,0.00014603,2]
[360750686,1746970174149,-166.66017131,0.00014648,2]
[360750687,1746970174172,-863.53778421,0.00014649,2]
[360750688,1746970174195,-250.0,0.00014701,2]
[360750689,1746970174218,-250.0,0.00014702,2]
[360750690,1746970174240,-547.08187588,0.00014706,2]
[360750691,1746970174264,-150.0,0.00014706,2]
[360750692,1746970174287,-163.86098508,0.00014712,2]
[360750693,1746970174312,-166.66017131,0.00014732,2]
[360750694,1746970174335,-163.86098508,0.00014795,2]
[360750695,1746970174357,-998.84840298,0.00014801,2]
[360750696,1746970174379,-998.8484029,0.00014812,2]
[360750697,1746970174404,-166.66017131,0.00014816,2]
[360750698,1746970174426,-998.8484029,0.00014823,2]
[360750699,1746970174449,-998.8484029,0.00014834,2]
[360750700,1746970174472,-998.8484029,0.00014845,2]
[360750701,1746970174493,-12500.0,0.00014856,2]
[360750702,1746970174515,-12500.0,0.00014865,2]
[360750703,1746970174535,-277.806,0.00014865,2]
[360750704,1746970174559,-4606.432,0.00014865,2]
[360750705,1746970174579,-11961.41181402,0.00014874,2]
[360750706,1746970174599,-163.86098508,0.00014877,2]
[360750707,1746970174621,-12193.8716846,0.00014882,2]
[360750708,1746970174642,-250.0,0.00014883,2]
[360750709,1746970174662,-175.0,0.00014889,2]
[360750710,1746970174682,-12500.0,0.00014891,2]
[360750711,1746970174705,-505.0404546,0.00014899,2]
[360750712,1746970174730,-12500.0,0.000149,2]
[360750713,1746970174754,-2062.06622395,0.000149,2]
[360750714,1746970174775,-196.89489542,0.000149,2]
[360750715,1746970174799,-166.66017131,0.000149,2]
[360750716,1746970174823,-181.37531074,0.000149,2]
[360750717,1746970174848,-341.88856012,0.000149,2]
[360750718,1746970174872,-180.01833177,0.000149,2]
[360750719,1746970174894,-5719.2,0.00014901,2]
[360750720,1746970174920,-427.08,0.00014901,2]
[360750721,1746970174943,-1680.0,0.00014944,2]
[360750722,1746970174963,-184.27,0.00014954,2]
[360750723,1746970174984,-1000.0,0.00014962,2]
[360750724,1746970175010,-501.00564254,0.00014973,2]
[360750725,1746970175031,-500.0,0.00014973,2]
[360750726,1746970175054,-500.0,0.00014973,2]
[360750728,1746970175085,-500.0,0.00014973,2]
[360750729,1746970175109,-500.0,0.00014973,2]
[360750731,1746970175130,-500.0,0.00014973,2]
[360750732,1746970175150,-500.0,0.00014973,2]
[360750733,1746970175171,-3451.41209424,0.00014999,2]
[360750734,1746970175194,-270.19739524,0.00014999,2]
[360750735,1746970175218,-300.0,0.00014999,2]
[360750736,1746970175241,-191518.38334006,0.00015,2]
[360750768,1746970232070,-936.02531955,0.00013621,2]
[360750769,1746970232083,-263.97468045,0.00013621,2]
[360750770,1746970232094,-546.09557477,0.00013622,2]
[360750771,1746970232131,-9629.516592,0.00013622,2]
[360750772,1746970232149,-458.11714593,0.00013622,2]
[360750773,1746970232173,-10445.1806873,0.00013622,2]
[360750774,1746970232183,-250.0,0.00014239,2]
[360750775,1746970232193,-250.0,0.00014536,2]
[360750776,1746970232204,-250.0,0.00014622,2]
[360750777,1746970232214,-466.1777727,0.00014756,2]
[360750778,1746970232224,-466.17777268,0.00014828,2]
[360750779,1746970232235,-998.8484029,0.00014856,2]
[360750780,1746970232245,-998.8484029,0.00014867,2]
[360750781,1746970232256,-998.8484029,0.00014878,2]
[360750782,1746970232266,-998.8484029,0.00014889,2]
[360750783,1746970232276,-998.8484029,0.000149,2]
[360750784,1746970232286,-158.73702648,0.000149,2]
[360750785,1746970232297,-466.17777268,0.000149,2]
[360750786,1746970232310,-500.0,0.00014973,2]
[360750787,1746970232319,-500.0,0.00014973,2]
[360750788,1746970232330,-1680.0,0.00014983,2]
[360750789,1746970232340,-250.0,0.00014985,2]
[360750790,1746970232350,-900.82,0.0001499,2]
[360750791,1746970232360,-900.82,0.0001499,2]
[360750792,1746970232369,-150.0,0.00014999,2]
[360750793,1746970232379,-64739.70147457,0.00015,2]
[360750794,1746970232392,-37721.01108995,0.00015,2]
[360750795,1746970232404,-684.71908266,0.00015,2]
[360750797,1746970232415,-14728.64177648,0.00015,2]
[360750799,1746970232428,-294.6040721,0.00015,2]
[360750802,1746970232440,-2400.16032161,0.00015,2]
[360750804,1746970232452,-267.59430731,0.00015,2]
[360750806,1746970232464,-722.36624579,0.00015,2]
[360750819,1746970237752,-361.26540913,0.00015,2]
[360750820,1746970237764,-351.6,0.00015,2]
[360750821,1746970237875,-264.9701967,0.00015,2]
[360750822,1746970237887,-521.35,0.00015,2]
[360750823,1746970237899,-3731.23953936,0.00015,2]
[360750824,1746970237910,-260.58,0.00015,2]
[360750825,1746970237943,-563.31326908,0.00015,2]
[360750826,1746970237955,-428.61941707,0.00015,2]
[360750827,1746970238003,-411.06,0.00015,2]
[360750828,1746970238017,-4811.93368657,0.00015,2]
[360750829,1746970238066,-1555.40956786,0.00015,2]
[360750907,1746970240075,-947.72946,0.00015,2]
[360750908,1746970240087,-861.2198595,0.00015,2]
[360750957,1746970241151,-478.93276308,0.00015,2]
[360750958,1746970241174,-262.5,0.00015,2]
[360750959,1746970241779,-334.24466693,0.00014539,2]
[360750960,1746970241791,-339.99676154,0.00014539,2]
[360750970,1746970243130,-252.58751994,0.00014539,2]
[360750971,1746970243244,-856.56105159,0.00014539,2]
[360750972,1746970243253,-58539.98339161,0.00015,2]
[360750973,1746970243265,-528.00587479,0.00015,2]
[360750974,1746970243280,-571556.44292381,0.00015,2]
[360750991,1746970245887,-3337.59663473,0.000149,2]
[360750992,1746970245899,-8153.30522196,0.000149,2]
[360750993,1746970245909,-2278.51704348,0.00015,2]
[360750994,1746970246004,-10437.36280916,0.00015,2]
[360750997,1746970313143,172.0,0.000155,3]
[360750999,1746970371135,1974.54,0.00017728,5]
[360751001,1746970834064,2911.02619997,0.00017728,7]
[360751002,1746970868565,2478.75835377,0.000278,120]
[360751003,1746970970306,-172.04,0.00011135,2]
[360751004,1746970970327,-172.04,0.00012991,2]
[360751005,1746970970350,-46.62460017,0.00013663,2]
[360751006,1746970985311,-390.70460017,0.00013663,2]
[360751007,1746971000234,-62.67079966,0.00013663,2]
[360751008,1746971000266,-112.31036047,0.00013663,2]
[360751009,1746971015259,-255.40543469,0.0001366,2]
[360751010,1746971030215,-179.61765318,0.0001366,2]
[360751011,1746971045492,-353.69080585,0.00013638,2]
[360751012,1746971045889,-353.69080585,0.00013638,2]
[360751013,1746971060893,-155.72200098,0.0001361,2]
[360751014,1746971075277,-338.72815488,0.00013542,2]
[360751015,1746971075903,-91.65844012,0.00013542,2]
[360751016,1746971075926,-3.06799902,0.0001361,2]
[360751017,1746971075950,-244.00171574,0.00013638,2]
[360751018,1746971090912,-269.55041985,0.00013638,2]
[360751019,1746971105268,-269.55041985,0.00013638,2]
[360751020,1746971120323,-180.30363672,0.00013638,2]
[360751021,1746971135262,-180.30363672,0.00013622,2]
[360751022,1746971150916,-374.82393165,0.00013528,2]
[360751023,1746971165277,-164.27690735,0.00013528,2]
[360751024,1746971165300,-210.5470243,0.00013597,2]
[360751025,1746971180325,-283.99014983,0.00013597,2]
[360751026,1746971196272,-282.46097747,0.00013597,2]
[360751027,1746971196646,-282.46097747,0.00013597,2]
[360751028,1746971210341,-170.7393119,0.00013521,2]
[360751029,1746971210365,-55.38355168,0.00013597,2]
[360751030,1746971225273,-282.46097747,0.00013528,2]
[360751031,1746971230084,-283.99015053,0.00013528,2]
[360751032,1746971230106,-882.79249506,0.00013597,2]
[360751033,1746971235341,300.0,0.000141,5]
[360751034,1746971236120,-5.02482419,0.00013597,2]
[360751035,1746971236143,-300.0,0.0001362,2]
[360751036,1746971236163,-304.41599415,0.00013621,2]
[360751037,1746971238066,600.0,0.000142,5]
[360751038,1746971239094,-135.14381401,0.00013621,2]
[360751039,1746971239123,-148.13230453,0.00013621,2]
[360751040,1746971239601,900.0,0.000143,5]
[360751041,1746971240256,-351.86769547,0.00013621,2]
[360751042,1746971240292,-171.79613539,0.00013621,2]
[360751043,1746971241134,-328.20386461,0.00013621,2]
[360751044,1746971241164,-500.0,0.00013621,2]
[360751045,1746971241192,-500.0,0.00013621,2]
[360751046,1746971241221,-500.0,0.00013621,2]
[360751047,1746971241248,-500.0,0.00013621,2]
[360751048,1746971241276,-500.0,0.00013621,2]
[360751049,1746971241303,-500.0,0.00013621,2]
[360751050,1746971241331,-500.0,0.00013621,2]
[360751051,1746971241359,-500.0,0.00013621,2]
[360751052,1746971241386,-500.0,0.00013621,2]
[360751053,1746971241417,-500.0,0.00013621,2]
[360751054,1746971241445,-500.0,0.00013621,2]
[360751055,1746971241473,-500.0,0.00013621,2]
[360751056,1746971241501,-500.0,0.00013621,2]
[360751057,1746971241529,-211.58754249,0.00013621,2]
[360751058,1746971241979,1200.0,0.000144,5]
[360751059,1746971244098,1500.0,0.000145,5]
[360751060,1746971246214,208.09406707,0.000146,5]
[360751061,1746971246241,91.90593293,0.000146,5]
[360751062,1746971248823,300.0,0.000147,5]
[360751063,1746971250781,300.0,0.000148,5]
[360751064,1746971252925,300.0,0.000149,5]
[360751065,1746971255307,-167.41014926,0.00013586,2]
[360751066,1746971270241,-195.79235064,0.00013586,2]
[360751067,1746971285266,-198.45916692,0.00011647,2]
[360751068,1746971300248,-172.40610424,0.00011647,2]
[360751069,1746971316479,-172.40610424,0.00011647,2]
[360751070,1746971331326,-215.95880197,0.00011647,2]
[360751071,1746971345300,-215.95880197,0.00011647,2]
[360751077,1746971359085,-780.79102066,0.00011647,2]
[360751078,1746971359107,-415.54969936,0.00013463,2]
[360751079,1746971360220,-247.75061802,0.00013463,2]
[360751080,1746971363079,-336.69968262,0.00013463,2]
[360751081,1746971363100,-290.50031738,0.00013496,2]
[360751082,1746971364085,-3073.78968262,0.00013496,2]
[360751083,1746971364106,-183.38,0.00013512,2]
[360751084,1746971364126,-837.3675001,0.00013586,2]
[360751085,1746971364149,-300.0,0.00013619,2]
[360751086,1746971364169,-150.0,0.0001362,2]
[360751087,1746971364197,-500.0,0.0001362,2]
[360751088,1746971364224,-500.0,0.0001362,2]
[360751089,1746971364251,-52.55024328,0.0001362,2]
[360751090,1746971366084,-447.44975672,0.0001362,2]
[360751091,1746971366113,-258.92877488,0.0001362,2]
[360751095,1746971375240,-231.30280941,0.0001362,2]
[360751096,1746971390729,-381.71971259,0.00013552,2]
[360751097,1746971392745,500.0,0.00028,120]
[360751100,1746971399295,500.0,0.00028,120]
[360751101,1746971405903,-217.21786444,0.00013552,2]
[360751102,1746971420227,-191.78213556,0.00013552,2]
[360751103,1746971429485,500.0,0.00028,120]
[360751116,1746971432044,-351.05453904,0.00013512,2]
[360751117,1746971432484,-2240.39999828,0.00013512,2]
[360751118,1746971432655,-289.13546268,0.00013512,2]
[360751119,1746971432664,-366.35355141,0.00013552,2]
[360751120,1746971432674,-250.0,0.00013586,2]
[360751121,1746971432684,-250.0,0.00013613,2]
[360751122,1746971432694,-1200.0,0.00013619,2]
[360751123,1746971432703,-300.0,0.00013619,2]
[360751124,1746971432712,-300.0,0.00013619,2]
[360751126,1746971432722,-9.76841571,0.0001362,2]
[360751128,1746971432732,-500.0,0.0001362,2]
[360751130,1746971432741,-500.0,0.0001362,2]
[360751132,1746971432750,-500.0,0.0001362,2]
[360751134,1746971432759,-500.0,0.0001362,2]
[360751136,1746971432768,-500.0,0.0001362,2]
[360751138,1746971432778,-500.0,0.0001362,2]
[360751140,1746971432787,-542.39323509,0.0001362,2]
[360751142,1746971432796,-500.0,0.0001362,2]
[360751144,1746971432805,-500.0,0.0001362,2]
[360751146,1746971432815,-500.0,0.0001362,2]
[360751148,1746971432826,-500.0,0.0001362,2]
[360751150,1746971432835,-500.0,0.0001362,2]
[360751152,1746971432844,-500.0,0.0001362,2]
[360751154,1746971432853,-500.0,0.0001362,2]
[360751156,1746971432863,-500.0,0.0001362,2]
[360751158,1746971432872,-500.0,0.0001362,2]
[360751160,1746971432881,-500.0,0.0001362,2]
[360751161,1746971432890,-460.37006119,0.0001362,2]
[360751167,1746971432931,-39.62993881,0.0001362,2]
[360751169,1746971432940,-500.0,0.0001362,2]
[360751171,1746971432949,-500.0,0.0001362,2]
[360751173,1746971432959,-500.0,0.0001362,2]
[360751175,1746971432968,-500.0,0.0001362,2]
[360751176,1746971432978,-500.0,0.0001362,2]
[360751178,1746971432987,-500.0,0.0001362,2]
[360751180,1746971432997,-500.0,0.0001362,2]
[360751182,1746971433006,-500.0,0.0001362,2]
[360751184,1746971433015,-500.0,0.0001362,2]
[360751186,1746971433024,-500.0,0.0001362,2]
[360751188,1746971433033,-49.11925292,0.0001362,2]
[360751255,1746971435888,-159.0,0.0001362,2]
[360751256,1746971438063,-291.88074708,0.0001362,2]
[360751257,1746971438074,-196.78355483,0.0001362,2]
[360751258,1746971438190,-303.21644517,0.0001362,2]
[360751259,1746971438201,-169.78355083,0.0001362,2]
[360751260,1746971438212,-330.21644917,0.0001362,2]
[360751261,1746971438222,-500.0,0.0001362,2]
[360751262,1746971438232,-500.0,0.0001362,2]
[360751263,1746971438241,-500.0,0.0001362,2]
[360751264,1746971438251,-500.0,0.0001362,2]
[360751265,1746971438261,-500.0,0.0001362,2]
[360751266,1746971438271,-500.0,0.0001362,2]
[360751267,1746971438280,-500.0,0.0001362,2]
[360751268,1746971438290,-510.0056693,0.0001362,2]
[360751269,1746971438300,-500.0,0.0001362,2]
[360751270,1746971438310,-500.0,0.0001362,2]
[360751271,1746971438320,-500.0,0.0001362,2]
[360751272,1746971438334,-500.0,0.0001362,2]
[360751273,1746971438348,-500.0,0.0001362,2]
[360751274,1746971438358,-500.0,0.0001362,2]
[360751275,1746971438369,-500.0,0.0001362,2]